fUST/lending_fUST_20250624
["ID","MTS","AMOUNT","RATE_DAILY","PERIOD"]
[367336659,1750755054927,-460.0,0.0002,2]
[367336660,1750755054936,-460.0,0.0002,2]
[367336661,1750755054946,-460.0,0.0002,2]
[367336662,1750755054956,-460.0,0.0002,2]
[367336663,1750755054965,-460.0,0.0002,2]
[367336664,1750755054974,-802.49,0.0002,2]
[367336665,1750755054984,-3492.25,0.0002,2]
[367336666,1750755054993,-460.0,0.0002,2]
[367336667,1750755055003,-460.0,0.0002,2]
[367336668,1750755055014,-1711.46,0.0002,2]
[367336669,1750755055025,-460.0,0.0002,2]
[367336670,1750755055035,-1352.03,0.0002,2]
[367336671,1750755055045,-1160.85,0.0002,2]
[367336672,1750755055054,-460.0,0.0002,2]
[367336673,1750755055063,-3802.86,0.0002,2]
[367336674,1750755055073,-460.0,0.0002,2]
[367336675,1750755055083,-460.0,0.0002,2]
[367336676,1750755055093,-460.0,0.0002,2]
[367336677,1750755055102,-460.0,0.0002,2]
[367336678,1750755055113,-460.0,0.0002,2]
[367336679,1750755055122,-460.0,0.0002,2]
[367336680,1750755055132,-460.0,0.0002,2]
[367336681,1750755055142,-460.0,0.0002,2]
[367336682,1750755055151,-460.0,0.0002,2]
[367336683,1750755055161,-512.81,0.0002,2]
[367336684,1750755055170,-509.71,0.0002,2]
[367336685,1750755055179,-1227.2,0.0002,2]
[367336686,1750755055189,-464.03183796,0.0002,2]
[367336687,1750755055199,-460.0,0.0002,2]
[367336688,1750755055209,-460.0,0.0002,2]
[367336689,1750755055219,-1558.69,0.0002,2]
[367336690,1750755055229,-460.0,0.0002,2]
[367336691,1750755055238,-460.0,0.0002,2]
[367336692,1750755055248,-890.92,0.0002,2]
[367336693,1750755055257,-1129.31,0.0002,2]
[367336694,1750755055267,-460.0,0.0002,2]
[367336695,1750755055276,-460.0,0.0002,2]
[367336696,1750755055286,-460.0,0.0002,2]
[367336697,1750755055296,-460.0,0.0002,2]
[367336698,1750755055306,-460.0,0.0002,2]
[367336699,1750755055316,-503.39,0.0002,2]
[367336700,1750755055326,-460.0,0.0002,2]
[367336701,1750755055336,-3336.33,0.0002,2]
[367336702,1750755055345,-460.0,0.0002,2]
[367336703,1750755055354,-460.0,0.0002,2]
[367336704,1750755055363,-460.0,0.0002,2]
[367336705,1750755055373,-460.0,0.0002,2]
[367336706,1750755055382,-460.0,0.0002,2]
[367336707,1750755055391,-460.0,0.0002,2]
[367336708,1750755055400,-440.0,0.0002,2]
[367336709,1750755055409,-445.8394413,0.0002,2]
[367336710,1750755055418,-460.0,0.0002,2]
[367336711,1750755055427,-3108.84,0.0002,2]
[367336712,1750755055436,-1043.22,0.0002,2]
[367336713,1750755055445,-460.0,0.0002,2]
[367336714,1750755055454,-460.0,0.0002,2]
[367336715,1750755055463,-312.71694233,0.0002,2]
[367336716,1750755055472,-2718.8,0.0002,2]
[367336717,1750755055481,-460.0,0.0002,2]
[367336718,1750755055490,-2297.74,0.0002,2]
[367336719,1750755055499,-460.0,0.0002,2]
[367336720,1750755055508,-460.0,0.0002,2]
[367336721,1750755055518,-331.90946926,0.0002,2]
[367336722,1750755055527,-460.0,0.0002,2]
[367336723,1750755055536,-472.84,0.0002,2]
[367336724,1750755055545,-686.97,0.0002,2]
[367336725,1750755055555,-460.0,0.0002,2]
[367336726,1750755055566,-1034.53,0.0002,2]
[367336727,1750755055576,-460.0,0.0002,2]
[367336728,1750755055586,-460.0,0.0002,2]
[367336729,1750755055595,-460.0,0.0002,2]
[367336730,1750755055605,-460.0,0.0002,2]
[367336731,1750755055614,-460.0,0.0002,2]
[367336732,1750755055624,-4423.11,0.0002,2]
[367336733,1750755055633,-460.0,0.0002,2]
[367336734,1750755055643,-460.0,0.0002,2]
[367336735,1750755055653,-460.0,0.0002,2]
[367336736,1750755055662,-498.87,0.0002,2]
[367336737,1750755055671,-460.0,0.0002,2]
[367336738,1750755055681,-1356.23,0.0002,2]
[367336739,1750755055691,-564.81,0.0002,2]
[367336740,1750755055700,-1527.77,0.0002,2]
[367336741,1750755055711,-460.0,0.0002,2]
[367336742,1750755055722,-460.0,0.0002,2]
[367336743,1750755055731,-460.0,0.0002,2]
[367336744,1750755055741,-917.06,0.0002,2]
[367336745,1750755055751,-556.13,0.0002,2]
[367336746,1750755055760,-460.0,0.0002,2]
[367336747,1750755055770,-460.0,0.0002,2]
[367336748,1750755055779,-1891.95,0.0002,2]
[367336749,1750755055788,-460.0,0.0002,2]
[367336750,1750755055798,-460.0,0.0002,2]
[367336751,1750755055807,-1048.02,0.0002,2]
[367336752,1750755055816,-1140.59,0.0002,2]
[367336753,1750755055825,-609.41,0.0002,2]
[367336754,1750755055835,-3302.7,0.0002,2]
[367336755,1750755055844,-460.0,0.0002,2]
[367336756,1750755055853,-460.0,0.0002,2]
[367336757,1750755055863,-460.0,0.0002,2]
[367336758,1750755055872,-1182.78,0.0002,2]
[367336759,1750755055881,-865.91,0.0002,2]
[367336760,1750755055891,-2811.91,0.0002,2]
[367336761,1750755055901,-460.0,0.0002,2]
[367336762,1750755055911,-460.0,0.0002,2]
[367336763,1750755055921,-460.0,0.0002,2]
[367336764,1750755055930,-460.0,0.0002,2]
[367336765,1750755055940,-468.72,0.0002,2]
[367336766,1750755055949,-460.0,0.0002,2]
[367336767,1750755055958,-460.0,0.0002,2]
[367336768,1750755055968,-1078.54,0.0002,2]
[367336769,1750755055978,-460.0,0.0002,2]
[367336770,1750755055988,-460.0,0.0002,2]
[367336771,1750755055997,-1172.06,0.0002,2]
[367336772,1750755056007,-460.0,0.0002,2]
[367336773,1750755056016,-936.84,0.0002,2]
[367336774,1750755056026,-460.0,0.0002,2]
[367336775,1750755056036,-460.0,0.0002,2]
[367336776,1750755056045,-1147.18,0.0002,2]
[367336777,1750755056054,-416.44360486,0.0002,2]
[367336778,1750755056064,-460.0,0.0002,2]
[367336779,1750755056074,-669.18,0.0002,2]
[367336780,1750755056083,-271.73,0.0002,2]
[367336781,1750755056096,-430.0,0.0002,2]
[367336782,1750755056105,-1364.47,0.0002,2]
[367336783,1750755056115,-460.0,0.0002,2]
[367336784,1750755056124,-460.0,0.0002,2]
[367336785,1750755056134,-460.0,0.0002,2]
[367336786,1750755056144,-787.57,0.0002,2]
[367336787,1750755056154,-456.3084947,0.0002,2]
[367336788,1750755056163,-505.49584676,0.0002,2]
[367336789,1750755056172,-460.0,0.0002,2]
[367336790,1750755056182,-1283.7,0.0002,2]
[367336791,1750755056191,-3667.8,0.0002,2]
[367336792,1750755056201,-4000.0,0.0002,4]
[367336793,1750755056210,-460.0,0.0002,2]
[367336794,1750755056219,-460.0,0.0002,2]
[367336795,1750755056231,-460.0,0.0002,2]
[367336796,1750755056240,-467.55003261,0.0002,2]
[367336797,1750755056249,-2790.88,0.0002,2]
[367336798,1750755056259,-1147.28,0.0002,2]
[367336799,1750755056268,-460.0,0.0002,2]
[367336800,1750755056277,-545.79,0.0002,2]
[367336801,1750755056287,-827.6,0.0002,2]
[367336802,1750755056296,-460.0,0.0002,2]
[367336803,1750755056305,-460.0,0.0002,2]
[367336804,1750755056315,-460.0,0.0002,2]
[367336805,1750755056324,-1404.87,0.0002,2]
[367336806,1750755056332,-460.0,0.0002,2]
[367336807,1750755056342,-567.76,0.0002,2]
[367336808,1750755056351,-460.0,0.0002,2]
[367336809,1750755056360,-665.95,0.0002,2]
[367336810,1750755056369,-494.52,0.0002,2]
[367336811,1750755056378,-2058.09,0.0002,2]
[367336812,1750755056387,-222.9729105,0.00020008,2]
[367336813,1750755056396,-160.0,0.00020013,2]
[367336814,1750755056405,-213.66798275,0.00020013,2]
[367336815,1750755056415,-12556.00642039,0.00020013,2]
[367336816,1750755056423,-160.0,0.00020013,2]
[367336817,1750755056433,-160.0,0.00020013,2]
[367336818,1750755056442,-230.20892031,0.00020013,2]
[367336819,1750755056451,-160.0,0.00020013,2]
[367336820,1750755056460,-160.0,0.00020013,2]
[367336821,1750755056469,-160.0,0.00020013,2]
[367336822,1750755056478,-836.80226758,0.00020013,2]
[367336823,1750755056487,-846.68469334,0.00020013,2]
[367336824,1750755056496,-425.14181427,0.00020013,2]
[367336825,1750755056506,-160.0,0.00020015,2]
[367336826,1750755056515,-1000.0,0.00020021,2]
[367336827,1750755056524,-1000.0,0.00020021,2]
[367336828,1750755056533,-1000.0,0.00020021,2]
[367336829,1750755056542,-1000.0,0.00020021,2]
[367336830,1750755056552,-1000.0,0.00020021,2]
[367336831,1750755056562,-1000.0,0.00020021,2]
[367336832,1750755056573,-151.0,0.00020073,2]
[367336833,1750755056582,-151.0,0.000201,3]
[367336834,1750755056592,-151.0,0.000201,3]
[367336835,1750755056602,-500.0,0.00020164,2]
[367336836,1750755056611,-531.931088,0.00020187,2]
[367336837,1750755056620,-151.0,0.000202,3]
[367336838,1750755056629,-2654.37735654,0.000202,2]
[367336839,1750755056638,-2654.37735629,0.000202,2]
[367336840,1750755056647,-624.0,0.00020225,2]
[367336841,1750755056657,-624.0,0.00020232,2]
[367336842,1750755056667,-1500.0,0.00020268,2]
[367336843,1750755056676,-1500.0,0.00020268,2]
[367336844,1750755056685,-1500.0,0.00020268,2]
[367336845,1750755056694,-702.83,0.00020273,2]
[367336846,1750755056703,-702.83,0.00020273,2]
[367336847,1750755056712,-151.0,0.00020273,2]
[367336848,1750755056721,-460.0,0.00020273,2]
[367336849,1750755056730,-460.0,0.00020273,2]
[367336850,1750755056739,-460.0,0.00020273,2]
[367336851,1750755056750,-460.0,0.00020273,2]
[367336852,1750755056760,-460.0,0.00020273,2]
[367336853,1750755056769,-460.0,0.00020273,2]
[367336854,1750755056778,-460.0,0.00020273,2]
[367336855,1750755056787,-201.65175997,0.00020273,2]
[367336856,1750755056796,-460.0,0.00020273,2]
[367336857,1750755056806,-460.0,0.00020273,2]
[367336858,1750755056815,-460.0,0.00020273,2]
[367336859,1750755056824,-460.0,0.00020273,2]
[367336860,1750755056833,-460.0,0.00020273,2]
[367336861,1750755056842,-460.0,0.00020273,2]
[367336862,1750755056851,-460.0,0.00020273,2]
[367336863,1750755056860,-460.0,0.00020273,2]
[367336864,1750755056869,-460.0,0.00020273,2]
[367336865,1750755056878,-485.7,0.00020273,2]
[367336866,1750755056888,-460.0,0.00020273,2]
[367336867,1750755056897,-449.29645423,0.00020273,2]
[367336868,1750755056906,-460.0,0.00020273,2]
[367336869,1750755056915,-460.0,0.00020273,2]
[367336870,1750755056924,-460.0,0.00020273,2]
[367336871,1750755056973,-314.95774738,0.00020273,2]
[367336872,1750755056982,-460.0,0.00020273,2]
[367336873,1750755056991,-460.0,0.00020273,2]
[367336874,1750755057000,-460.0,0.00020273,2]
[367336875,1750755057010,-460.0,0.00020273,2]
[367336876,1750755057019,-460.0,0.00020273,2]
[367336877,1750755057028,-460.0,0.00020273,2]
[367336878,1750755057037,-460.0,0.00020273,2]
[367336879,1750755057046,-460.0,0.00020273,2]
[367336880,1750755057055,-503.77719931,0.00020273,2]
[367336881,1750755057064,-525.25,0.00020273,2]
[367336882,1750755057074,-460.0,0.00020273,2]
[367336883,1750755057083,-460.0,0.00020273,2]
[367336884,1750755057091,-460.0,0.00020273,2]
[367336885,1750755057101,-460.0,0.00020273,2]
[367336886,1750755057110,-589.59,0.00020273,2]
[367336887,1750755057120,-460.0,0.00020273,2]
[367336888,1750755057129,-1033.48,0.00020273,2]
[367336889,1750755057138,-460.0,0.00020273,2]
[367336890,1750755057147,-460.0,0.00020273,2]
[367336891,1750755057156,-701.42,0.00020273,2]
[367336892,1750755057166,-460.0,0.00020273,2]
[367336893,1750755057175,-576.96873525,0.00020273,2]
[367336894,1750755057184,-460.0,0.00020273,2]
[367336895,1750755057193,-1859.83,0.00020273,2]
[367336896,1750755057202,-460.0,0.00020273,2]
[367336897,1750755057211,-460.0,0.00020273,2]
[367336898,1750755057220,-460.0,0.00020273,2]
[367336899,1750755057230,-460.0,0.00020273,2]
[367336900,1750755057239,-460.0,0.00020273,2]
[367336901,1750755057248,-584.23812289,0.00020273,2]
[367336902,1750755057258,-460.0,0.00020273,2]
[367336903,1750755057266,-460.0,0.00020273,2]
[367336904,1750755057276,-460.0,0.00020273,2]
[367336905,1750755057285,-460.0,0.00020273,2]
[367336906,1750755057294,-460.0,0.00020273,2]
[367336907,1750755057304,-460.0,0.00020273,2]
[367336908,1750755057315,-460.0,0.00020273,2]
[367336909,1750755057325,-460.0,0.00020273,2]
[367336910,1750755057334,-460.0,0.00020273,2]
[367336911,1750755057345,-460.0,0.00020273,2]
[367336912,1750755057356,-460.0,0.00020273,2]
[367336913,1750755057365,-440.0,0.00020273,2]
[367336914,1750755057374,-460.0,0.00020273,2]
[367336915,1750755057382,-460.0,0.00020273,2]
[367336916,1750755057391,-460.0,0.00020273,2]
[367336917,1750755057402,-460.0,0.00020273,2]
[367336918,1750755057410,-500.0,0.00020273,2]
[367336919,1750755057421,-460.0,0.00020273,2]
[367336920,1750755057432,-837.07,0.00020273,2]
[367336921,1750755057442,-1145.59,0.00020273,2]
[367336922,1750755057451,-436.68493286,0.00020273,2]
[367336923,1750755057461,-460.0,0.00020273,2]
[367336924,1750755057470,-460.0,0.00020273,2]
[367336925,1750755057479,-460.0,0.00020273,2]
[367336926,1750755057488,-460.0,0.00020273,2]
[367336927,1750755057497,-460.0,0.00020273,2]
[367336928,1750755057506,-2160.1,0.00020273,2]
[367336929,1750755057517,-460.0,0.00020273,2]
[367336930,1750755057527,-460.0,0.00020273,2]
[367336931,1750755057536,-460.0,0.00020273,2]
[367336932,1750755057546,-460.0,0.00020273,2]
[367336933,1750755057555,-460.0,0.00020273,2]
[367336934,1750755057565,-460.0,0.00020273,2]
[367336935,1750755057576,-460.0,0.00020273,2]
[367336936,1750755057585,-460.0,0.00020273,2]
[367336937,1750755057594,-460.0,0.00020273,2]
[367336938,1750755057605,-460.0,0.00020273,2]
[367336939,1750755057614,-802.49,0.00020273,2]
[367336940,1750755057623,-460.0,0.00020273,2]
[367336941,1750755057632,-460.0,0.00020273,2]
[367336942,1750755057642,-3492.25,0.00020273,2]
[367336943,1750755057652,-1711.46,0.00020273,2]
[367336944,1750755057661,-460.0,0.00020273,2]
[367336945,1750755057670,-1352.03,0.00020273,2]
[367336946,1750755057679,-1160.85,0.00020273,2]
[367336947,1750755057688,-460.0,0.00020273,2]
[367336948,1750755057697,-3802.86,0.00020273,2]
[367336949,1750755057707,-460.0,0.00020273,2]
[367336950,1750755057716,-460.0,0.00020273,2]
[367336951,1750755057725,-508.98148759,0.00020273,2]
[367336952,1750755057735,-460.0,0.00020273,2]
[367336953,1750755057744,-460.0,0.00020273,2]
[367336954,1750755057754,-460.0,0.00020273,2]
[367336955,1750755057763,-512.81,0.00020273,2]
[367336956,1750755057771,-1227.2,0.00020273,2]
[367336957,1750755057780,-460.0,0.00020273,2]
[367336958,1750755057789,-460.0,0.00020273,2]
[367336959,1750755057798,-460.0,0.00020273,2]
[367336960,1750755057808,-1558.69,0.00020273,2]
[367336961,1750755057817,-460.0,0.00020273,2]
[367336962,1750755057826,-890.92,0.00020273,2]
[367336963,1750755057835,-1129.31,0.00020273,2]
[367336964,1750755057844,-460.0,0.00020273,2]
[367336965,1750755057853,-460.0,0.00020273,2]
[367336966,1750755057862,-460.0,0.00020273,2]
[367336967,1750755057871,-503.39,0.00020273,2]
[367336968,1750755057881,-3336.33,0.00020273,2]
[367336969,1750755057890,-460.0,0.00020273,2]
[367336970,1750755057899,-460.0,0.00020273,2]
[367336971,1750755057907,-460.0,0.00020273,2]
[367336972,1750755057916,-460.0,0.00020273,2]
[367336973,1750755057925,-460.0,0.00020273,2]
[367336974,1750755057934,-3108.84,0.00020273,2]
[367336975,1750755057943,-1043.22,0.00020273,2]
[367336976,1750755057952,-460.0,0.00020273,2]
[367336977,1750755057961,-2718.8,0.00020273,2]
[367336978,1750755057970,-589.0332452,0.00020273,2]
[367336979,1750755057979,-2297.74,0.00020273,2]
[367336980,1750755057988,-460.0,0.00020273,2]
[367336981,1750755057997,-460.0,0.00020273,2]
[367336982,1750755058007,-460.0,0.00020273,2]
[367336983,1750755058017,-472.84,0.00020273,2]
[367336984,1750755058026,-686.97,0.00020273,2]
[367336985,1750755058036,-460.0,0.00020273,2]
[367336986,1750755058045,-1034.53,0.00020273,2]
[367336987,1750755058055,-460.0,0.00020273,2]
[367336988,1750755058064,-460.0,0.00020273,2]
[367336989,1750755058074,-431.35954067,0.00020273,2]
[367336990,1750755058083,-460.0,0.00020273,2]
[367336991,1750755058093,-460.0,0.00020273,2]
[367336992,1750755058102,-4423.11,0.00020273,2]
[367336993,1750755058113,-460.0,0.00020273,2]
[367336994,1750755058123,-460.0,0.00020273,2]
[367336995,1750755058132,-460.0,0.00020273,2]
[367336996,1750755058142,-498.87,0.00020273,2]
[367336997,1750755058152,-460.0,0.00020273,2]
[367336998,1750755058163,-1356.23,0.00020273,2]
[367336999,1750755058172,-564.81,0.00020273,2]
[367337000,1750755058181,-1527.77,0.00020273,2]
[367337001,1750755058190,-460.0,0.00020273,2]
[367337002,1750755058201,-199.53349207,0.00020273,2]
[367337003,1750755058210,-917.06,0.00020273,2]
[367337004,1750755058220,-460.0,0.00020273,2]
[367337005,1750755058230,-556.13,0.00020273,2]
[367337006,1750755058239,-460.0,0.00020273,2]
[367337007,1750755058249,-460.0,0.00020273,2]
[367337008,1750755058259,-1891.95,0.00020273,2]
[367337009,1750755058268,-419.19801869,0.00020273,2]
[367337010,1750755058277,-460.0,0.00020273,2]
[367337011,1750755058287,-1048.02,0.00020273,2]
[367337012,1750755058297,-1140.59,0.00020273,2]
[367337013,1750755058307,-609.41,0.00020273,2]
[367337014,1750755058316,-3302.7,0.00020273,2]
[367337015,1750755058326,-460.0,0.00020273,2]
[367337016,1750755058335,-460.0,0.00020273,2]
[367337017,1750755058345,-460.0,0.00020273,2]
[367337018,1750755058354,-1182.78,0.00020273,2]
[367337019,1750755058365,-865.91,0.00020273,2]
[367337020,1750755058374,-2811.91,0.00020273,2]
[367337021,1750755058384,-460.0,0.00020273,2]
[367337022,1750755058393,-460.0,0.00020273,2]
[367337023,1750755058403,-460.0,0.00020273,2]
[367337024,1750755058412,-460.0,0.00020273,2]
[367337025,1750755058421,-468.72,0.00020273,2]
[367337026,1750755058431,-460.0,0.00020273,2]
[367337027,1750755058440,-1078.54,0.00020273,2]
[367337028,1750755058450,-460.0,0.00020273,2]
[367337029,1750755058459,-460.0,0.00020273,2]
[367337030,1750755058469,-1172.06,0.00020273,2]
[367337031,1750755058478,-460.0,0.00020273,2]
[367337032,1750755058488,-936.84,0.00020273,2]
[367337033,1750755058497,-460.0,0.00020273,2]
[367337034,1750755058507,-460.0,0.00020273,2]
[367337035,1750755058517,-1147.18,0.00020273,2]
[367337036,1750755058526,-453.95275745,0.00020273,2]
[367337037,1750755058535,-669.18,0.00020273,2]
[367337038,1750755058545,-1364.47,0.00020273,2]
[367337039,1750755058556,-460.0,0.00020273,2]
[367337040,1750755058568,-787.57,0.00020273,2]
[367337041,1750755058578,-438.9860764,0.00020273,2]
[367337042,1750755058587,-1283.7,0.00020273,2]
[367337043,1750755058598,-3667.8,0.00020273,2]
[367337044,1750755058607,-460.0,0.00020273,2]
[367337045,1750755058617,-455.10402577,0.00020273,2]
[367337046,1750755058626,-460.0,0.00020273,2]
[367337047,1750755058637,-2790.88,0.00020273,2]
[367337048,1750755058647,-1147.28,0.00020273,2]
[367337049,1750755058656,-460.0,0.00020273,2]
[367337050,1750755058666,-827.6,0.00020273,2]
[367337051,1750755058678,-460.0,0.00020273,2]
[367337052,1750755058688,-460.0,0.00020273,2]
[367337053,1750755058697,-1404.87,0.00020273,2]
[367337054,1750755058707,-460.0,0.00020273,2]
[367337055,1750755058718,-567.76,0.00020273,2]
[367337056,1750755058728,-460.0,0.00020273,2]
[367337057,1750755058738,-665.95,0.00020273,2]
[367337058,1750755058747,-494.52,0.00020273,2]
[367337059,1750755058757,-2058.09,0.00020273,2]
[367337060,1750755058767,-800.0,0.00020303,2]
[367337061,1750755058777,-160.0,0.00020352,5]
[367337062,1750755058786,-562.0,0.00020357,2]
[367337063,1750755058796,-151.0,0.00020357,2]
[367337064,1750755058805,-154.16487973,0.00020357,2]
[367337065,1750755058815,-500.0,0.00020357,2]
[367337066,1750755058825,-500.0,0.00020357,2]
[367337067,1750755058835,-500.0,0.00020357,2]
[367337068,1750755058844,-151.0,0.00020357,2]
[367337069,1750755058853,-151.0,0.00020357,2]
[367337070,1750755058863,-500.0,0.00020357,2]
[367337071,1750755058873,-151.0,0.00020357,2]
[367337072,1750755058882,-151.0,0.00020357,2]
[367337073,1750755058892,-151.0,0.00020357,2]
[367337074,1750755058901,-151.0,0.00020357,2]
[367337075,1750755058912,-151.0,0.00020357,2]
[367337076,1750755058921,-151.0,0.00020357,2]
[367337077,1750755058931,-151.0,0.00020357,2]
[367337078,1750755058940,-2654.37735629,0.00020383,3]
[367337079,1750755058950,-562.0,0.00020384,2]
[367337080,1750755058959,-199.10625364,0.00020384,2]
[367337081,1750755058969,-500.0,0.00020384,2]
[367337082,1750755058979,-510.29819206,0.00020384,2]
[367337083,1750755058989,-349.82735152,0.00020384,2]
[367337084,1750755059000,-151.0,0.00020384,2]
[367337085,1750755059010,-409.17326402,0.00020384,2]
[367337086,1750755059021,-261.61815622,0.00020384,2]
[367337087,1750755059031,-155.87488093,0.00020384,2]
[367337088,1750755059041,-166.07256633,0.00020384,2]
[367337089,1750755059051,-247.54744974,0.00020384,2]
[367337090,1750755059062,-151.0,0.00020384,2]
[367337091,1750755059072,-15556.08973976,0.00020394,2]
[367337092,1750755059082,-151.0,0.000204,3]
[367337093,1750755059091,-965.0,0.00020412,2]
[367337094,1750755059101,-654.0,0.00020412,2]
[367337095,1750755059109,-2160.0,0.00020412,2]
[367337096,1750755059119,-406.0,0.00020412,2]
[367337097,1750755059128,-562.0,0.00020412,2]
[367337098,1750755059138,-158.39835402,0.00020412,2]
[367337099,1750755059147,-198.0,0.00020412,2]
[367337100,1750755059157,-151.0,0.00020412,2]
[367337101,1750755059167,-715.43735121,0.00020439,2]
[367337102,1750755059177,-562.0,0.00020439,2]
[367337103,1750755059187,-151.0,0.00020439,2]
[367337104,1750755059197,-1000.0,0.00020458,2]
[367337105,1750755059207,-1000.0,0.00020458,2]
[367337106,1750755059217,-562.0,0.00020467,2]
[367337107,1750755059227,-245.0,0.00020467,2]
[367337108,1750755059237,-215.0738,0.00020469,2]
[367337109,1750755059246,-774.17274144,0.00020474,2]
[367337110,1750755059256,-510.86747445,0.00020474,2]
[367337111,1750755059265,-205.8,0.00020476,2]
[367337112,1750755059276,-562.0,0.00020494,2]
[367337113,1750755059286,-7737.0178716,0.000205,2]
[367337114,1750755059295,-1000.0,0.00020521,2]
[367337115,1750755059305,-1000.0,0.00020521,2]
[367337116,1750755059314,-1000.0,0.00020521,2]
[367337117,1750755059324,-1000.0,0.00020521,2]
[367337118,1750755059334,-1000.0,0.00020521,2]
[367337119,1750755059344,-1000.0,0.00020521,2]
[367337120,1750755059353,-1000.0,0.00020521,2]
[367337121,1750755059363,-1000.0,0.00020521,2]
[367337122,1750755059373,-1000.0,0.00020521,2]
[367337123,1750755059382,-562.0,0.00020521,2]
[367337124,1750755059392,-702.83,0.00020547,2]
[367337125,1750755059401,-702.83,0.00020547,2]
[367337126,1750755059411,-263.58212928,0.00020547,2]
[367337127,1750755059420,-460.0,0.00020547,2]
[367337128,1750755059430,-460.0,0.00020547,2]
[367337129,1750755059440,-460.0,0.00020547,2]
[367337130,1750755059450,-460.0,0.00020547,2]
[367337131,1750755059459,-460.0,0.00020547,2]
[367337132,1750755059469,-460.0,0.00020547,2]
[367337133,1750755059479,-460.0,0.00020547,2]
[367337134,1750755059489,-460.0,0.00020547,2]
[367337135,1750755059498,-460.0,0.00020547,2]
[367337136,1750755059508,-460.0,0.00020547,2]
[367337137,1750755059518,-546.86903497,0.00020547,2]
[367337138,1750755059527,-460.0,0.00020547,2]
[367337139,1750755059537,-460.0,0.00020547,2]
[367337140,1750755059547,-487.22617593,0.00020547,2]
[367337141,1750755059557,-460.0,0.00020547,2]
[367337142,1750755059569,-460.0,0.00020547,2]
[367337143,1750755059579,-460.0,0.00020547,2]
[367337144,1750755059589,-460.0,0.00020547,2]
[367337145,1750755059599,-460.0,0.00020547,2]
[367337146,1750755059609,-552.86,0.00020547,2]
[367337147,1750755059619,-460.0,0.00020547,2]
[367337148,1750755059628,-460.0,0.00020547,2]
[367337149,1750755059638,-460.0,0.00020547,2]
[367337150,1750755059649,-460.0,0.00020547,2]
[367337151,1750755059659,-460.0,0.00020547,2]
[367337152,1750755059668,-460.0,0.00020547,2]
[367337153,1750755059678,-525.25,0.00020547,2]
[367337154,1750755059687,-460.0,0.00020547,2]
[367337155,1750755059697,-460.0,0.00020547,2]
[367337156,1750755059706,-460.0,0.00020547,2]
[367337157,1750755059715,-460.0,0.00020547,2]
[367337158,1750755059725,-589.59,0.00020547,2]